bitfinex/quotes_SOLUSD_20260118
["timestamp","ask_amount","ask_price","bid_price","bid_amount"]
[1768761436064,4.18753973,142.64,142.61,11.07837874]
[1768761436380,6.30257688,142.64,142.61,11.07837874]
[1768761438007,6.30257688,142.62,142.6,44.2]
[1768761438488,6.30257688,142.61,142.58,7.01315285]
[1768761438676,4.18753973,142.6,142.58,7.01315285]
[1768761439071,6.30257688,142.61,142.58,11.07958524]
[1768761443078,4.16229155,142.58,142.56,0.2]
[1768761443285,4.10229156,142.58,142.56,0.2]
[1768761444008,4.04229157,142.58,142.56,0.2]
[1768761444700,2.11503715,142.59,142.56,4.17960752]
[1768761446104,2.11503715,142.59,142.56,0.2]
[1768761446604,6.2773287,142.58,142.56,0.2]
[1768761446903,6.27907615,142.58,142.56,0.2]
[1768761450192,4.16229155,142.57,142.56,0.2]
[1768761450505,4.16229155,142.57,142.53,19.79536371]
[1768761450506,4.16229155,142.56,142.53,19.79536371]
[1768761450703,4.16229155,142.57,142.54,10.99516344]
[1768761451003,6.27907615,142.57,142.54,10.99516344]
[1768761455115,4.16229155,142.56,142.54,3.97960752]
[1768761455916,4.10229156,142.56,142.54,3.97960752]
[1768761461217,6.21907616,142.56,142.54,3.97960752]
[1768761461388,4.15877309,142.55,142.53,7.01599521]
[1768761461595,2.1167846,142.56,142.53,10.96979935]
[1768761463496,6.27555769,142.56,142.53,10.96979935]
[1768761465200,6.27555769,142.56,142.54,3.95380414]
[1768761465396,4.15877309,142.55,142.53,7.01599521]
[1768761465900,6.27555769,142.56,142.53,10.96979935]
[1768761468310,4.15877309,142.55,142.53,10.96979935]
[1768761468820,6.27555769,142.55,142.53,10.96979935]
[1768761469221,4.15877309,142.56,142.53,3.95380414]
[1768761469521,6.2155577,142.56,142.53,3.95380414]
[1768761470517,6.2155577,142.56,142.53,10.96974597]
[1768761471221,6.2155577,142.56,142.53,3.95380414]
[1768761471599,4.15877309,142.55,142.53,3.95380414]
[1768761471801,4.0987731,142.55,142.53,3.95380414]
[1768761473521,7.01430418,142.57,142.53,10.96986507]
[1768761473716,6.25925237,142.56,142.53,10.96986507]
[1768761474108,4.14246777,142.55,142.53,10.96986507]
[1768761474613,4.14246777,142.55,142.52,10.9862698]
[1768761474816,6.25925237,142.55,142.52,10.9862698]
[1768761476133,6.25925237,142.54,142.52,0.2]
[1768761476312,6.19925238,142.54,142.52,0.2]
[1768761479335,6.13925239,142.54,142.52,0.2]
[1768761480235,2.1167846,142.53,142.51,0.2]
[1768761480534,2.05678461,142.52,142.49,15.81790795]
[1768761480711,2.1167846,142.5,142.48,0.2]
[1768761480916,2.1167846,142.49,142.48,0.2]
[1768761481213,6.25925237,142.5,142.48,0.2]
[1768761481421,6.25925237,142.5,142.48,7.21826175]
[1768761481829,4.14246777,142.51,142.48,10.98814834]
[1768761482007,6.25925237,142.51,142.48,10.98814834]
[1768761482809,6.25925237,142.52,142.49,10.78779886]
[1768761484133,4.14246777,142.52,142.49,10.78779886]
[1768761484320,4.14246777,142.53,142.5,3.76988659]
[1768761484514,2.1167846,142.52,142.5,3.76988659]
[1768761484716,6.25925237,142.52,142.49,10.78779886]
[1768761485328,4.14246777,142.51,142.48,10.98822156]
[1768761486129,4.14246777,142.52,142.49,3.76988659]
[1768761486320,6.25925237,142.52,142.49,3.76988659]
[1768761486830,6.25925237,142.51,142.48,10.98822156]
[1768761487136,6.25925237,142.52,142.49,10.78791839]
[1768761488633,4.14246777,142.51,142.49,7.0180318]
[1768761489834,6.25925237,142.51,142.48,10.98822197]
[1768761490035,4.14246777,142.5,142.48,0.2]
[1768761490417,4.14246777,142.5,142.48,3.96988659]
[1768761490737,6.25925237,142.51,142.48,3.96988659]
[1768761490908,4.14246777,142.51,142.48,3.96988659]
[1768761491108,6.25925237,142.51,142.48,3.96988659]
[1768761491336,4.14246777,142.51,142.48,3.96988659]
[1768761491533,6.25925237,142.51,142.48,3.96988659]
[1768761493044,2.1167846,142.5,142.48,0.2]
[1768761493219,4.14246777,142.49,142.48,0.2]
[1768761493414,2.1167846,142.5,142.48,0.2]
[1768761493619,6.25925237,142.5,142.48,0.2]
[1768761494543,6.25925237,142.5,142.48,3.96988659]
[1768761494835,4.14246777,142.51,142.48,3.96988659]
[1768761495039,2.1167846,142.5,142.48,3.96988659]
[1768761495424,2.1167846,142.5,142.48,0.2]
[1768761495621,6.25925237,142.5,142.48,0.2]
[1768761496738,4.14246777,142.5,142.48,0.2]
[1768761497123,6.25925237,142.49,142.48,0.2]
[1768761497326,4.14246777,142.48,142.47,0.2]
[1768761497531,4.08246778,142.48,142.47,0.2]
[1768761497830,2.1167846,142.49,142.47,0.2]
[1768761499316,9.13389163,142.51,142.48,3.76988659]
[1768761499728,4.14246777,142.5,142.47,10.98888708]
[1768761500526,4.14246777,142.5,142.47,7.21900049]
[1768761501640,4.14246777,142.5,142.47,10.98888708]
[1768761506242,5.98090759,142.49,142.47,0.2]
[1768761506445,3.86412299,142.49,142.47,4.0849155]
[1768761506629,3.86412299,142.5,142.47,11.10393362]
[1768761506829,5.98090759,142.5,142.47,11.10393362]
[1768761508237,5.98090759,142.5,142.47,4.0849155]
[1768761508923,5.98339804,142.5,142.47,4.0849155]
[1768761509542,3.86412299,142.49,142.47,4.0849155]
[1768761509744,13.00101554,142.5,142.47,4.0849155]
[1768761510134,3.86412299,142.49,142.47,4.0849155]
[1768761513036,3.86412299,142.5,142.47,4.0849155]
[1768761513544,3.86412299,142.51,142.48,3.8849155]
[1768761513722,5.98339804,142.51,142.48,3.8849155]
[1768761513927,3.86412299,142.51,142.48,3.8849155]
[1768761514149,3.86412299,142.5,142.47,7.21878203]
[1768761514350,3.86412299,142.5,142.47,11.10369753]
[1768761522362,4.03897138,142.48,142.47,0.2]
[1768761522647,6.15824643,142.49,142.47,0.2]
[1768761524147,6.15824643,142.48,142.46,0.2]
[1768761524351,4.03897138,142.47,142.46,0.2]
[1768761525835,6.15824643,142.48,142.46,0.2]
[1768761526049,4.03897138,142.48,142.46,4.22621584]
[1768761526235,4.03897138,142.49,142.46,11.24566741]
[1768761527438,4.03897138,142.5,142.47,4.02621584]
[1768761527639,4.03897138,142.51,142.48,4.02621584]
[1768761527849,4.03897138,142.53,142.49,4.02621584]
[1768761528773,4.03897138,142.53,142.49,11.0441089]
[1768761529153,6.15824643,142.53,142.49,11.0441089]
[1768761529553,6.15824643,142.54,142.5,4.02621584]
[1768761529948,4.03897138,142.54,142.5,4.02621584]
[1768761530381,6.15824643,142.55,142.5,4.02621584]
[1768761530675,4.03897138,142.54,142.51,4.02621584]
[1768761533654,4.03897138,142.54,142.51,11.04318114]
[1768761533873,3.85766984,142.55,142.52,3.90767399]
[1768761534960,10.87288178,142.55,142.51,3.90767399]
[1768761535173,12.99215683,142.55,142.52,3.90767399]
[1768761540773,3.85766984,142.54,142.52,3.90767399]
[1768761541075,3.79766985,142.54,142.52,3.90767399]
[1768761541261,3.73766986,142.54,142.52,3.90767399]
[1768761541974,7.01478108,142.56,142.52,3.90767399]
[1768761542178,9.13405613,142.56,142.52,3.90767399]
[1768761543276,3.85766984,142.55,142.52,3.90767399]
[1768761546363,10.87275302,142.55,142.52,3.90767399]
[1768761548883,12.99202807,142.55,142.52,3.90767399]
[1768761550667,10.87275302,142.55,142.52,3.90767399]
[1768761550861,12.99202807,142.55,142.52,3.90767399]
[1768761552182,3.85766984,142.54,142.52,3.90767399]
[1768761561987,3.85766984,142.54,142.51,3.90767399]
[1768761563187,3.85766984,142.54,142.51,10.92462572]
[1768761564389,3.85766984,142.54,142.52,3.99122303]
[1768761574681,3.85766984,142.54,142.51,11.00822562]
[1768761577507,4.00136761,142.53,142.5,7.01754385]
[1768761578002,4.00136761,142.53,142.5,10.87152158]
[1768761579907,4.00136761,142.53,142.51,3.85397773]
[1768761580204,4.00136761,142.53,142.5,3.85397773]
[1768761580789,6.11915617,142.55,142.5,3.85397773]
[1768761581002,4.00136761,142.55,142.5,3.85397773]
[1768761581485,9.13289575,142.55,142.5,3.85397773]
[1768761581691,4.00136761,142.54,142.5,3.85397773]
[1768761582098,4.00136761,142.54,142.51,10.87102916]
[1768761583504,4.00136761,142.54,142.5,10.87152158]
[1768761586206,4.00136761,142.54,142.5,7.01754385]
[1768761586407,4.00136761,142.54,142.51,3.85397773]
[1768761587015,4.00136761,142.55,142.51,3.85397773]
[1768761587916,4.00136761,142.55,142.53,3.85397773]
[1768761588211,4.00136761,142.55,142.53,3.82397773]
[1768761591120,4.00136761,142.55,142.53,3.79397773]
[1768761591823,4.00136761,142.55,142.52,7.01655907]
[1768761592115,6.11915617,142.55,142.52,7.01655907]
[1768761592320,4.00136761,142.55,142.52,7.01655907]
[1768761593027,4.00136761,142.55,142.52,10.83752612]
[1768761598229,15.36,142.58,142.52,10.83752612]
[1768761598230,4.0194088,142.59,142.55,3.82096705]
[1768761598409,4.0194088,142.57,142.54,3.82096705]
[1768761600519,4.0194088,142.57,142.54,10.8363892]
[1768761600714,2.11778856,142.57,142.54,3.82096705]
[1768761600922,6.13719736,142.57,142.54,3.82096705]
[1768761601314,4.0194088,142.56,142.54,3.82096705]
[1768761601518,4.0194088,142.54,142.49,3.82096705]
[1768761601708,4.0194088,142.53,142.5,10.8380371]
[1768761601902,3.95940881,142.53,142.5,10.8380371]
[1768761602304,7.01505428,142.56,142.51,3.82096705]
[1768761602823,2.11778856,142.54,142.51,10.83787711]
[1768761603809,6.13719736,142.54,142.51,10.83787711]
[1768761605224,4.0194088,142.53,142.5,3.82096705]
[1768761606530,3.98686322,142.53,142.51,7.01705143]
[1768761610021,3.98686322,142.53,142.5,10.83831056]
[1768761611336,6.10465178,142.53,142.5,10.83831056]
[1768761611537,3.98686322,142.53,142.5,10.83831056]
[1768761616643,6.10465178,142.53,142.5,10.83831056]
[1768761617845,4.0194088,142.52,142.5,7.01734351]
[1768761618143,3.99245989,142.52,142.5,7.01734351]
[1768761619739,17.53706746,142.56,142.5,10.83831056]
[1768761619949,4.0194088,142.52,142.49,3.82096705]
[1768761620140,4.0194088,142.55,142.49,10.83896199]
[1768761620328,4.0194088,142.52,142.49,10.83896199]
[1768761620527,4.0194088,142.54,142.5,10.83841926]
[1768761620841,4.0194088,142.51,142.49,8.8]
[1768761621139,4.0194088,142.51,142.48,3.82096705]
[1768761622539,4.0194088,142.51,142.48,10.83936369]
[1768761627646,6.13719736,142.51,142.48,10.83936369]
[1768761629052,6.13843632,142.51,142.48,10.83936369]
[1768761629955,3.75436613,142.49,142.46,13.14100869]
[1768761630253,3.75436613,142.49,142.46,20.16021883]
[1768761630636,5.34408856,142.57,142.5,4.14100869]
[1768761630837,14.88819654,142.6,142.51,4.14100869]
[1768761631144,15.36,142.59,142.52,4.14100869]
[1768761631349,2.11902752,142.56,142.52,4.14100869]
[1768761631853,9.13334657,142.57,142.52,11.15741333]
[1768761632643,12.8877127,142.57,142.53,4.14100869]
[1768761632836,3.75436613,142.58,142.55,4.14100869]
[1768761634043,10.76805571,142.58,142.55,4.14100869]
[1768761634637,3.75436613,142.57,142.54,4.14100869]
[1768761638558,5.87339365,142.57,142.54,4.14100869]
[1768761639954,12.88749653,142.57,142.54,4.14100869]
[1768761641043,3.94091536,142.58,142.54,4.14100869]
[1768761641260,3.94091536,142.57,142.53,10.8987179]
[1768761641566,6.05994288,142.57,142.54,3.88278746]
[1768761642861,10.95506864,142.57,142.54,3.88278746]
[1768761643063,13.07409616,142.57,142.54,3.88278746]
[1768761645170,9.1331808,142.57,142.54,3.88278746]
[1768761645365,3.94091536,142.56,142.54,3.88278746]
[1768761645758,3.94091536,142.56,142.52,19.69902898]
[1768761646359,6.05994288,142.55,142.52,12.68278746]
[1768761646565,3.94091536,142.55,142.52,12.68278746]
[1768761647182,3.94091536,142.55,142.52,19.69931721]
[1768761649375,3.94091536,142.56,142.53,3.88278746]
[1768761649557,6.05994288,142.56,142.53,3.88278746]
[1768761649763,3.94091536,142.55,142.52,10.89931721]
[1768761650174,3.94091536,142.55,142.52,3.88278746]
[1768761650877,6.05994288,142.57,142.53,3.88278746]
[1768761651570,13.07424671,142.57,142.53,3.88278746]
[1768761651881,3.94091536,142.56,142.53,3.88278746]
[1768761653679,3.94091536,142.56,142.53,10.89884413]
[1768761653857,3.94091536,142.56,142.53,3.88278746]
[1768761657084,3.92490039,142.57,142.53,3.88278746]
[1768761657290,6.04392791,142.57,142.53,3.88278746]
[1768761658681,3.92490039,142.57,142.54,3.73458576]
[1768761664192,13.05769954,142.58,142.54,3.73458576]
[1768761664692,3.92490039,142.57,142.54,3.73458576]
[1768761665597,13.05803652,142.57,142.54,3.73458576]
[1768761666002,10.939009,142.57,142.54,3.73458576]
[1768761666299,13.05803652,142.57,142.54,3.73458576]
[1768761666900,10.939009,142.57,142.54,3.73458576]
[1768761668700,7.01410861,142.57,142.54,3.73458576]
[1768761669506,13.05769271,142.58,142.55,3.73458576]
[1768761672806,3.92490039,142.55,142.53,3.73458576]
[1768761673695,2.11902752,142.56,142.53,3.73458576]
[1768761674005,6.04392791,142.56,142.53,3.73458576]
[1768761675098,13.05855155,142.56,142.53,3.73458576]
[1768761675292,10.93919762,142.57,142.53,3.73458576]
[1768761675496,13.05822514,142.57,142.53,3.73458576]
[1768761676492,13.05822514,142.57,142.54,3.73458576]
[1768761678509,7.01429723,142.57,142.54,3.73458576]
[1768761679809,10.93919762,142.57,142.54,3.73458576]
[1768761680308,13.05822514,142.57,142.54,3.73458576]
[1768761680905,10.93919762,142.57,142.54,3.73458576]
[1768761681099,13.05822514,142.57,142.54,3.73458576]
[1768761686604,10.93919762,142.57,142.54,3.73458576]
[1768761686919,3.76879213,142.56,142.52,15.81642087]
[1768761688916,3.76879213,142.56,142.53,3.73216421]
[1768761691518,12.90041676,142.57,142.54,3.73216421]
[1768761694321,3.76879213,142.56,142.54,3.73216421]
[1768761699126,5.88611953,142.56,142.54,3.73216421]
[1768761699504,3.76879213,142.56,142.54,3.73216421]
[1768761699705,5.88611953,142.56,142.54,3.73216421]
[1768761701223,3.56137805,142.54,142.51,12.38560814]
[1768761701420,3.56137805,142.54,142.51,3.58560814]
[1768761701807,5.67870545,142.55,142.51,3.58560814]
[1768761702524,5.67870545,142.55,142.52,3.58560814]
[1768761702721,5.67870545,142.54,142.51,10.60259135]
[1768761703506,10.57611337,142.56,142.52,3.58560814]
[1768761703706,5.67870545,142.55,142.52,3.58560814]
[1768761706130,5.67870545,142.54,142.51,3.58560814]
[1768761706315,3.56137805,142.54,142.51,3.58560814]
[1768761706521,5.67870545,142.54,142.51,3.58560814]
[1768761720432,5.67870545,142.54,142.51,10.6026567]
[1768761722919,10.74578206,142.55,142.52,3.80385738]
[1768761723225,12.86310946,142.55,142.52,3.80385738]
[1768761724519,5.84793718,142.54,142.52,3.80385738]
[1768761724719,10.74578206,142.55,142.52,3.80385738]
[1768761725028,2.1173274,142.54,142.52,3.80385738]
[1768761728239,2.05732741,142.54,142.52,3.80385738]
[1768761728844,9.07294676,142.54,142.52,3.80385738]
[1768761731144,12.80355654,142.54,142.51,3.80385738]
[1768761731444,5.84793718,142.53,142.51,3.80385738]
[1768761731748,2.1173274,142.52,142.5,3.80385738]
[1768761734543,5.84793718,142.53,142.5,3.80385738]
[1768761735755,3.73060978,142.53,142.5,3.80385738]
[1768761735939,5.78793719,142.53,142.5,3.80385738]
[1768761742754,5.7279372,142.53,142.5,3.80385738]
[1768761746841,12.74400493,142.53,142.5,3.80385738]
[1768761749960,12.68400494,142.53,142.5,3.80385738]
[1768761750460,10.56667754,142.53,142.5,3.80385738]
[1768761750666,12.68400494,142.53,142.5,3.80385738]
[1768761752663,10.56667754,142.53,142.5,3.80385738]
[1768761752839,12.68514929,142.53,142.5,3.80385738]
[1768761753669,3.55060981,142.53,142.5,10.82132913]
[1768761753846,12.89928361,142.54,142.51,3.6228583]
[1768761754267,10.78081186,142.54,142.51,3.6228583]
[1768761754565,12.89928361,142.54,142.51,3.6228583]
[1768761754866,2.11847175,142.55,142.52,3.6228583]
[1768761756453,9.13365728,142.55,142.52,3.6228583]
[1768761758948,12.82461744,142.55,142.52,3.6228583]
[1768761761172,12.76461745,142.55,142.52,3.6228583]
[1768761766564,10.70614569,142.55,142.52,3.6228583]
[1768761766765,12.82461744,142.55,142.52,3.6228583]
[1768761773382,7.89256583,142.59,142.54,3.45332887]
[1768761773679,2.11847175,142.58,142.54,3.45332887]
[1768761773879,5.56571405,142.58,142.54,3.45332887]
[1768761774580,3.4472423,142.58,142.54,10.46885634]
[1768761775559,10.46087614,142.58,142.54,10.46885634]
[1768761775972,10.46087614,142.58,142.55,3.45332887]
[1768761780381,3.4472423,142.58,142.56,3.45332887]
[1768761780556,10.4603612,142.59,142.56,3.45332887]
[1768761781980,10.46000907,142.6,142.57,3.45332887]
[1768761783894,3.4472423,142.63,142.59,3.45332887]
[1768761784096,3.4472423,142.62,142.59,3.45332887]
[1768761784773,3.4472423,142.62,142.57,9.13252638]
[1768761785266,7.01165868,142.62,142.57,9.13252638]
[1768761785484,3.4472423,142.61,142.57,9.13252638]
[1768761786986,3.4472423,142.61,142.58,3.45332887]
[1768761791703,10.4585428,142.63,142.59,3.45332887]
[1768761791887,12.57701455,142.63,142.59,3.45332887]
[1768761792092,3.4472423,142.62,142.59,3.45332887]
[1768761792702,3.4472423,142.63,142.59,3.45332887]
[1768761793074,3.4472423,142.63,142.59,10.46642929]
[1768761793577,10.45796552,142.64,142.61,3.45332887]
[1768761793796,3.4472423,142.63,142.61,3.45332887]
[1768761794887,3.4472423,142.63,142.6,3.45332887]
[1768761795087,10.45796552,142.64,142.6,3.45332887]
[1768761795396,3.4472423,142.63,142.6,3.45332887]
[1768761800609,3.4472423,142.63,142.61,3.45332887]
[1768761801394,3.4472423,142.63,142.6,10.46593636]
[1768761801815,7.11023233,142.65,142.61,3.45332887]
[1768761802010,2.11847175,142.64,142.61,3.45332887]
[1768761802408,3.36455858,142.64,142.61,3.45332887]
[1768761802614,10.47479091,142.65,142.61,3.45332887]
[1768761803014,5.58303033,142.65,142.61,3.45332887]
[1768761803808,5.58303033,142.65,142.62,3.70401912]
[1768761804812,3.46455858,142.65,142.62,3.70401912]
[1768761805195,0.1,142.65,142.63,3.70401912]
[1768761806608,5.58303033,142.65,142.63,3.70401912]
[1768761807215,3.36455858,142.63,142.6,12.50401912]
[1768761807397,5.48303033,142.63,142.6,8.8]
[1768761807789,5.48303033,142.63,142.6,12.50401912]
[1768761807999,5.48303033,142.63,142.6,3.70401912]
[1768761811816,3.36455858,142.62,142.6,3.70401912]
[1768761812023,5.48303033,142.62,142.6,3.70401912]
[1768761812515,5.48303033,142.62,142.59,3.70401912]
[1768761812896,5.48018178,142.62,142.59,3.70401912]
[1768761815320,3.36455858,142.62,142.59,3.70401912]
[1768761816529,5.48018178,142.62,142.59,3.70401912]
[1768761816703,3.36455858,142.62,142.59,3.70401912]
[1768761816899,5.48018178,142.62,142.59,3.70401912]
[1768761820910,5.48018178,142.62,142.59,10.71710297]
[1768761825230,12.70921142,142.63,142.6,3.6457352]
[1768761825806,2.1156232,142.63,142.6,3.6457352]
[1768761827228,5.69800992,142.63,142.6,3.6457352]
[1768761830729,10.59334413,142.64,142.61,3.6457352]
[1768761830930,5.69800992,142.64,142.61,3.6457352]
[1768761836314,12.70881068,142.64,142.61,3.6457352]
[1768761839125,5.5371845,142.63,142.61,3.6457352]
[1768761839428,3.4215613,142.63,142.61,3.6457352]
[1768761840138,10.43284501,142.63,142.61,3.6457352]
[1768761842843,3.4215613,142.63,142.61,3.6457352]
[1768761843447,5.5371845,142.63,142.6,3.66522252]
[1768761849351,3.4215613,142.63,142.6,3.66522252]
[1768761849532,3.4215613,142.63,142.61,3.66522252]
[1768761850548,12.54800133,142.64,142.61,3.66522252]
[1768761851850,3.4215613,142.64,142.61,7.01205306]
[1768761852145,3.5215613,142.65,142.62,3.66522252]
[1768761852346,5.6371845,142.65,142.62,3.66522252]
[1768761853549,5.6371845,142.65,142.62,3.63522252]
[1768761856856,5.6371845,142.65,142.62,3.60522252]
[1768761859755,3.5215613,142.65,142.62,3.60522252]
[1768761859958,5.6371845,142.65,142.62,3.60522252]
[1768761860256,12.64735083,142.65,142.62,3.60522252]
[1768761862556,2.1156232,142.64,142.62,3.60522252]
[1768761862756,2.1156232,142.64,142.61,3.47021437]
[1768761862963,3.53738558,142.64,142.6,3.47021437]
[1768761863264,5.65300878,142.64,142.6,3.47021437]
[1768761863842,3.53738558,142.63,142.6,3.47021437]
[1768761866940,12.66423504,142.63,142.6,3.47021437]
[1768761867350,10.54861184,142.63,142.6,3.47021437]
[1768761867636,12.66423504,142.63,142.6,3.47021437]
[1768761868146,10.54861184,142.63,142.6,3.47021437]
[1768761869563,3.53738558,142.62,142.59,10.48297527]
[1768761869967,3.53738558,142.62,142.6,3.47021437]
[1768761870344,7.01122626,142.63,142.6,3.47021437]
[1768761870540,10.54861184,142.63,142.6,3.47021437]
[1768761871365,3.53738558,142.62,142.59,10.48297527]
[1768761871741,3.53738558,142.62,141.74,138.1502857]
[1768761871742,3.53738558,142.61,142.51,74.18683862]
[1768761871946,4.97199673,142.59,142.55,3.47021437]
[1768761872861,2.85593175,142.58,142.55,3.47021437]
[1768761873968,4.97111824,142.57,142.55,3.47021437]
[1768761874148,2.1156232,142.57,142.55,3.47021437]
[1768761874347,9.86911164,142.58,142.55,3.47021437]
[1768761874651,11.98473484,142.58,142.55,3.47021437]
[1768761874961,11.9862,142.58,142.55,3.47021437]
[1768761875764,4.97172498,142.57,142.54,3.47021437]
[1768761877147,2.85463662,142.57,142.54,10.48573859]
[1768761878370,4.97172498,142.57,142.54,10.48573859]
[1768761879151,2.11708836,142.57,142.55,3.33632588]
[1768761879771,11.99186546,142.58,142.55,3.33632588]
[1768761881762,9.8747771,142.58,142.55,3.33632588]
[1768761882060,4.9889788,142.59,142.56,3.33632588]
[1768761882372,2.11708836,142.59,142.56,3.33632588]
[1768761884572,9.13032382,142.59,142.56,3.33632588]
[1768761885166,2.11708836,142.58,142.56,3.33632588]
[1768761888579,9.1309225,142.58,142.56,3.33632588]
[1768761888771,2.11708836,142.57,142.56,3.33632588]
[1768761889966,9.1309225,142.58,142.56,3.33632588]
[1768761892282,9.1309225,142.58,142.54,3.33632588]
[1768761892865,2.91127757,142.57,142.54,3.33632588]
[1768761898588,2.85127758,142.57,142.54,3.33632588]
[1768761899484,4.96836594,142.57,142.54,3.33632588]
[1768761900994,2.85127758,142.57,142.54,3.33632588]
[1768761901400,9.89069322,142.59,142.55,3.36291217]
[1768761901592,12.00778158,142.59,142.55,3.36291217]
[1768761902000,9.89069322,142.59,142.55,3.36291217]
[1768761902303,2.88017626,142.58,142.55,3.36291217]
[1768761902597,12.01052354,142.59,142.55,3.36291217]
[1768761903774,9.89559008,142.6,142.56,3.36291217]
[1768761903982,12.01267844,142.6,142.56,3.36291217]
[1768761904203,4.99997509,142.6,142.56,3.36291217]
[1768761904373,12.01493328,142.61,142.56,3.36291217]
[1768761904579,2.88551701,142.6,142.57,3.36291217]
[1768761904886,5.00260537,142.6,142.57,3.36291217]
[1768761908605,9.90806737,142.61,142.57,3.36291217]
[1768761908805,12.02515573,142.61,142.58,3.36291217]
[1768761909588,2.11708836,142.62,142.58,3.36291217]
[1768761910289,5.01776461,142.62,142.58,3.36291217]
[1768761910483,2.90067625,142.62,142.59,3.36291217]
[1768761910704,5.01776461,142.62,142.59,3.36291217]
[1768761910890,2.11708836,142.62,142.59,3.36291217]
[1768761911092,9.91186163,142.63,142.59,3.36291217]
[1768761911385,12.02894999,142.63,142.59,3.36291217]
[1768761912308,9.91722547,142.62,142.59,3.36291217]
[1768761912607,12.03431383,142.62,142.59,3.36291217]
[1768761914888,9.91722547,142.62,142.59,3.36291217]
[1768761915083,12.03431383,142.62,142.59,3.36291217]
[1768761917608,9.91722547,142.62,142.59,3.36291217]
[1768761917786,12.03431383,142.62,142.59,3.36291217]
[1768761917987,12.04543415,142.63,142.59,3.36291217]
[1768761918510,12.04543415,142.63,142.6,3.36291217]
[1768761918511,5.03417217,142.63,142.6,3.36291217]
[1768761920311,2.91708381,142.63,142.6,3.36291217]
[1768761920502,5.03417217,142.63,142.6,3.36291217]
[1768761920812,2.11708836,142.63,142.6,3.36291217]
[1768761921498,5.04296911,142.63,142.6,3.36291217]
[1768761921698,2.92588075,142.63,142.6,3.36291217]
[1768761923188,5.04296911,142.63,142.6,3.36291217]
[1768761925507,0.1,142.65,142.61,3.38473398]
[1768761925893,0.1,142.65,142.62,3.38473398]
[1768761927315,0.1,142.65,142.63,3.38473398]
[1768761933195,0.1,142.65,142.63,3.35473398]
[1768761935614,10.71621867,142.65,142.61,5.50182234]
[1768761935917,10.71621867,142.65,142.62,3.38473398]
[1768761936121,3.6059402,142.64,142.61,3.38473398]
[1768761936617,3.6059402,142.64,142.61,10.39673849]
[1768761938825,9.22522171,142.65,142.62,3.58004554]
[1768761939037,0.1,142.65,142.62,3.58004554]
[1768761939330,3.82519969,142.65,142.62,3.58004554]
[1768761941724,3.82519969,142.65,142.62,10.59165297]
[1768761945329,3.82519969,142.65,142.62,3.58004554]
[1768761957843,3.82519969,142.65,142.62,10.59167708]
[1768761958946,3.82519969,142.65,142.6,1.8]
[1768761959132,3.75080973,142.62,142.56,3.45742334]
[1768761959327,3.75080973,142.6,142.57,3.45742334]
[1768761959848,3.75080973,142.6,142.57,12.58639588]
[1768761960558,3.75080973,142.6,142.57,10.47145264]
[1768761961836,3.75080973,142.6,142.54,15.36]
[1768761961837,9.1276075,142.6,142.54,7.01547036]
[1768761962138,3.75080973,142.58,142.55,3.45742334]
[1768761962547,3.75080973,142.58,142.55,10.47243616]
[1768761965825,3.75080973,142.58,142.55,3.45742334]
[1768761968646,3.75080973,142.59,142.56,3.45742334]
[1768761970047,3.75080973,142.58,142.55,10.4723124]
[1768761970242,3.69080974,142.58,142.55,10.4723124]
[1768761971052,7.01313814,142.59,142.56,3.45742334]
[1768761971853,9.12772946,142.6,142.56,3.45742334]
[1768761972152,10.76359595,142.6,142.57,3.45742334]
[1768761972649,3.75080973,142.59,142.57,3.45742334]
[1768761973047,3.75080973,142.59,142.56,10.47181371]
[1768761976447,3.75080973,142.6,142.57,3.45742334]
[1768761976758,12.87788395,142.61,142.57,3.45742334]
[1768761977455,3.75080973,142.61,142.57,3.45742334]
[1768761977958,5.86575297,142.61,142.57,3.45742334]
[1768761978552,12.87801472,142.61,142.57,3.45742334]
[1768761978942,10.76307148,142.61,142.57,3.45742334]
[1768761980453,12.87801472,142.61,142.57,3.45742334]
[1768761981155,3.75080973,142.6,142.57,3.45742334]
[1768761981339,10.76307148,142.61,142.57,3.45742334]
[1768761981741,12.87801472,142.61,142.57,3.45742334]
[1768761982359,10.76307148,142.61,142.57,10.47147616]
[1768761982560,12.87801472,142.61,142.57,10.47147616]
[1768761983062,10.76307148,142.61,142.58,3.56938483]
[1768761985054,3.503873,142.6,142.58,3.56938483]
[1768761985259,3.503873,142.6,142.57,3.56938483]
[1768761989440,10.51613475,142.61,142.57,3.56938483]
[1768761989642,10.51613475,142.61,142.57,10.58326629]
[1768761989849,10.51613475,142.61,142.58,3.56938483]
[1768761990158,3.503873,142.61,142.58,3.56938483]
[1768761995260,3.503873,142.59,142.55,12.38438873]
[1768761995462,3.44425681,142.59,142.56,3.56938483]
[1768761996059,2.11494324,142.59,142.5,3.56938483]
[1768761996364,24.54274029,142.61,142.49,3.6602151]
[1768761996365,2.11494324,142.58,142.53,3.56938483]
[1768761996569,9.12890127,142.58,142.53,12.70026649]
[1768761996758,9.12890127,142.58,142.54,3.56566958]
[1768761997149,7.01395803,142.58,142.54,3.56566958]